{"text_format":"3","workbook":"xlsx","n_sheets":6,"sheets":["Панель мониторинга","Продажи","Прибыль","Расходы","Налоги","Категории"],"not_rendered":{"images":1,"defined_names":34},"read":"whole","date_system":"1900"}

{"sheet":"Панель мониторинга","index":0,"n_rows":20,"n_cols":8,"rows_kept":20,"merged":[[0,2,0,4],[0,6,3,7],[5,1,5,7]]}
[null,"Отчет о финансовых результатах","С [Месяц или год] по [День-Месяц-Год]"]
[null,"Название компании","Указывается в тысячах рублей"]
[null,"Текущая валовая прибыль  [L/J]",{"$f":"IFERROR(IF(Общая_валовая_прибыль=0,\"-\",Общая_валовая_прибыль/Общие_доходы_от_продаж),\"-\")","v":"-"}]
[null,"Текущая рентабельность продаж  [T/J]",{"$f":"IFERROR(IF(Чистая_прибыль=0,\"-\",Чистая_прибыль/Общие_доходы_от_продаж),\"-\")","v":"-"}]
[]
[null,"Не изменяйте категории на этом листе, это может нарушить целостность формул. Для добавления и обновления категорий используйте лист «Категории». Этот лист обновляется автоматически."]
[null,"Сводка","Итого за предыдущий период","Общий бюджет","Итого за текущий\nпериод","Общий % продаж для текущего периода","Общий % изменения по сравнению с предыдущим периодом","Общий % отклонения от бюджета"]
[null,"Общие доходы от продаж  [J]",{"$f":"SUMIFS(ДоходыОтПродаж[Предыдущий период],ДоходыОтПродаж[Тип доходов],\"Доходы от продаж\")","v":0},{"$f":"SUMIFS(ДоходыОтПродаж[Бюджет],ДоходыОтПродаж[Тип доходов],\"Доходы от продаж\")","v":0},{"$f":"SUMIFS(ДоходыОтПродаж[Текущий период],ДоходыОтПродаж[Тип доходов],\"Доходы от продаж\")","v":0},{"$f":"SUMIFS(ДоходыОтПродаж[% продаж для текущего периода],ДоходыОтПродаж[Тип доходов],\"Доходы от продаж\")","v":{"v":0,"d":"0.00%"}},{"$f":"SUMIFS(ДоходыОтПродаж[% изменения по сравнению с предыдущим периодом],ДоходыОтПродаж[Тип доходов],\"Доходы от продаж\")","v":{"v":0,"d":"0.00%"}},{"$f":"SUMIFS(ДоходыОтПродаж[% отклонения от бюджета],ДоходыОтПродаж[Тип доходов],\"Доходы от продаж\")","v":{"v":0,"d":"0.00%"}}]
[null,"Общая себестоимость продаж  [K]",{"$f":"SUMIFS(ДоходыОтПродаж[Предыдущий период],ДоходыОтПродаж[Тип доходов],\"Себестоимость продаж\")","v":0},{"$f":"SUMIFS(ДоходыОтПродаж[Бюджет],ДоходыОтПродаж[Тип доходов],\"Себестоимость продаж\")","v":0},{"$f":"SUMIFS(ДоходыОтПродаж[Текущий период],ДоходыОтПродаж[Тип доходов],\"Себестоимость продаж\")","v":0},{"$f":"SUMIFS(ДоходыОтПродаж[% продаж для текущего периода],ДоходыОтПродаж[Тип доходов],\"Себестоимость продаж\")","v":{"v":0,"d":"0.00%"}},{"$f":"SUMIFS(ДоходыОтПродаж[% изменения по сравнению с предыдущим периодом],ДоходыОтПродаж[Тип доходов],\"Себестоимость продаж\")","v":{"v":0,"d":"0.00%"}},{"$f":"SUMIFS(ДоходыОтПродаж[% отклонения от бюджета],ДоходыОтПродаж[Тип доходов],\"Себестоимость продаж\")","v":{"v":0,"d":"0.00%"}}]
[null,"Общие расходы на продажи и маркетинг  [M]",{"$f":"SUMIFS(ОперационныеРасходы[Предыдущий период],ОперационныеРасходы[Тип расходов],\"Продажи и маркетинг\")","v":0},{"$f":"SUMIFS(ОперационныеРасходы[Бюджет],ОперационныеРасходы[Тип расходов],\"Продажи и маркетинг\")","v":0},{"$f":"SUMIFS(ОперационныеРасходы[Текущий период],ОперационныеРасходы[Тип расходов],\"Продажи и маркетинг\")","v":0},{"$f":"SUMIFS(ОперационныеРасходы[% продаж для текущего периода],ОперационныеРасходы[Тип расходов],\"Продажи и маркетинг\")","v":{"v":0,"d":"0.00%"}},{"$f":"SUMIFS(ОперационныеРасходы[% изменения по сравнению с предыдущим периодом],ОперационныеРасходы[Тип расходов],\"Продажи и маркетинг\")","v":{"v":0,"d":"0.00%"}},{"$f":"SUMIFS(ОперационныеРасходы[% отклонения от бюджета],ОперационныеРасходы[Тип расходов],\"Продажи и маркетинг\")","v":{"v":0,"d":"0.00%"}}]
[null,"Общие расходы на исследования и разработки  [N]",{"$f":"SUMIFS(ОперационныеРасходы[Предыдущий период],ОперационныеРасходы[Тип расходов],\"Исследования и разработки\")","v":0},{"$f":"SUMIFS(ОперационныеРасходы[Бюджет],ОперационныеРасходы[Тип расходов],\"Исследования и разработки\")","v":0},{"$f":"SUMIFS(ОперационныеРасходы[Текущий период],ОперационныеРасходы[Тип расходов],\"Исследования и разработки\")","v":0},{"$f":"SUMIFS(ОперационныеРасходы[% продаж для текущего периода],ОперационныеРасходы[Тип расходов],\"Исследования и разработки\")","v":{"v":0,"d":"0.00%"}},{"$f":"SUMIFS(ОперационныеРасходы[% изменения по сравнению с предыдущим периодом],ОперационныеРасходы[Тип расходов],\"Исследования и разработки\")","v":{"v":0,"d":"0.00%"}},{"$f":"SUMIFS(ОперационныеРасходы[% отклонения от бюджета],ОперационныеРасходы[Тип расходов],\"Исследования и разработки\")","v":{"v":0,"d":"0.00%"}}]
[null,"Общие и административные расходы  [O]",{"$f":"SUMIFS(ОперационныеРасходы[Предыдущий период],ОперационныеРасходы[Тип расходов],\"Общие и административные\")","v":0},{"$f":"SUMIFS(ОперационныеРасходы[Бюджет],ОперационныеРасходы[Тип расходов],\"Общие и административные\")","v":0},{"$f":"SUMIFS(ОперационныеРасходы[Текущий период],ОперационныеРасходы[Тип расходов],\"Общие и административные\")","v":0},{"$f":"SUMIFS(ОперационныеРасходы[% продаж для текущего периода],ОперационныеРасходы[Тип расходов],\"Общие и административные\")","v":{"v":0,"d":"0.00%"}},{"$f":"SUMIFS(ОперационныеРасходы[% изменения по сравнению с предыдущим периодом],ОперационныеРасходы[Тип расходов],\"Общие и административные\")","v":{"v":0,"d":"0.00%"}},{"$f":"SUMIFS(ОперационныеРасходы[% отклонения от бюджета],ОперационныеРасходы[Тип расходов],\"Общие и административные\")","v":{"v":0,"d":"0.00%"}}]
[null,"Другие эксплуатационные расходы [P]",{"$f":"ОперационныеРасходы[[#Totals],[Предыдущий период]]-SUM(C10:C12)","v":0},{"$f":"ОперационныеРасходы[[#Totals],[Бюджет]]-SUM(D10:D12)","v":0},{"$f":"ОперационныеРасходы[[#Totals],[Текущий период]]-SUM(E10:E12)","v":0},{"$f":"ОперационныеРасходы[[#Totals],[% продаж для текущего периода]]-SUM(F10:F12)","v":{"v":0,"d":"0.00%"}},{"$f":"ОперационныеРасходы[[#Totals],[% изменения по сравнению с предыдущим периодом]]-SUM(G10:G12)","v":{"v":0,"d":"0.00%"}},{"$f":"ОперационныеРасходы[[#Totals],[% отклонения от бюджета]]-SUM(H10:H12)","v":{"v":0,"d":"0.00%"}}]
[null,"Другая прибыль  [S]",{"$f":"Прибыль[[#Totals],[Предыдущий период]]","v":0},{"$f":"Прибыль[[#Totals],[Бюджет]]","v":0},{"$f":"Прибыль[[#Totals],[Текущий период]]","v":0},{"$f":"Прибыль[[#Totals],[% продаж для текущего периода]]","v":{"v":0,"d":"0.00%"}},{"$f":"Прибыль[[#Totals],[% изменения по сравнению с предыдущим периодом]]","v":{"v":0,"d":"0.00%"}},{"$f":"Прибыль[[#Totals],[% отклонения от бюджета]]","v":{"v":0,"d":"0.00%"}}]
[null,"Суммарные налоги  [T]",{"$f":"Налоги[[#Totals],[Предыдущий период]]","v":0},{"$f":"Налоги[[#Totals],[Бюджет]]","v":0},{"$f":"Налоги[[#Totals],[Текущий период]]","v":0},{"$f":"Налоги[[#Totals],[% продаж для текущего периода]]","v":{"v":0,"d":"0.00%"}},{"$f":"Налоги[[#Totals],[% изменения по сравнению с предыдущим периодом]]","v":{"v":0,"d":"0.00%"}},{"$f":"Налоги[[#Totals],[% отклонения от бюджета]]","v":{"v":0,"d":"0.00%"}}]
[]
[null,"Валовая прибыль  [L=J-K]",{"$f":"IFERROR(C8-C9,\"-\")","v":0},{"$f":"IFERROR(D8-D9,\"-\")","v":0},{"$f":"IFERROR(Общие_доходы_от_продаж-Общая_себестоимость_продаж,\"-\")","v":0},{"$f":"IFERROR(IF(Общие_доходы_от_продаж=0,\"0.00%\",Общая_валовая_прибыль/Общие_доходы_от_продаж),\"-\")","v":"0.00%"},{"$f":"IFERROR(IF(C17=Общая_валовая_прибыль,0,IF(Общая_валовая_прибыль>C17,ABS((Общая_валовая_прибыль/C17)-1),IF(AND(Общая_валовая_прибыль<C17,C17<0),-((Общая_валовая_прибыль/C17)-1),(Общая_валовая_прибыль/C17)-1))),\"-\")","v":{"v":0,"d":"0.00%"}},{"$f":"IFERROR(IF(D17=Общая_валовая_прибыль,0,IF(Общая_валовая_прибыль>D17,ABS((Общая_валовая_прибыль/D17)-1),IF(AND(Общая_валовая_прибыль<D17,D17<0),-((Общая_валовая_прибыль/D17)-1),(Общая_валовая_прибыль/D17)-1))),\"-\")","v":{"v":0,"d":"0.00%"}}]
[null,"Общие эксплуатационные расходы  [Q=M+N+O+P]",{"$f":"IFERROR(C10+C11+C12+C13,\"-\")","v":0},{"$f":"IFERROR(D10+D11+D12+D13,\"-\")","v":0},{"$f":"IFERROR(Общие_расходы_на_продажи_и_маркетинг+Общие_расходы_на_исследование_и_разработки+Общие_и_административные_расходы+Другие_расходы,\"-\")","v":0},{"$f":"IFERROR(IF(Общие_доходы_от_продаж=0,\"0.00%\",Общие_эксплуатационные_расходы/Общие_доходы_от_продаж),\"-\")","v":"0.00%"},{"$f":"IFERROR(IF(C18=Общие_эксплуатационные_расходы,0,IF(Общие_эксплуатационные_расходы>C18,ABS((Общие_эксплуатационные_расходы/C18)-1),IF(AND(Общие_эксплуатационные_расходы<C18,C18<0),-((Общие_эксплуатационные_расходы/C18)-1),(Общие_эксплуатационные_расходы/C18)-1))),\"-\")","v":{"v":0,"d":"0.00%"}},{"$f":"IFERROR(IF(D18=Общие_эксплуатационные_расходы,0,IF(Общие_эксплуатационные_расходы>D18,ABS((Общие_эксплуатационные_расходы/D18)-1),IF(AND(Общие_эксплуатационные_расходы<D18,D18<0),-((Общие_эксплуатационные_расходы/D18)-1),(Общие_эксплуатационные_расходы/D18)-1))),\"-\")","v":{"v":0,"d":"0.00%"}}]
[null,"Прибыль от операций  [R=L-Q]",{"$f":"IFERROR(C17-C18,\"-\")","v":0},{"$f":"IFERROR(D17-D18,\"-\")","v":0},{"$f":"IFERROR(Общая_валовая_прибыль-Общие_эксплуатационные_расходы,\"-\")","v":0},{"$f":"IFERROR(IF(Общие_доходы_от_продаж=0,\"0.00%\",Общая_прибыль_от_операций/Общие_доходы_от_продаж),\"-\")","v":"0.00%"},{"$f":"IFERROR(IF(C19=Общая_прибыль_от_операций,0,IF(Общая_прибыль_от_операций>C19,ABS((Общая_прибыль_от_операций/C19)-1),IF(AND(Общая_прибыль_от_операций<C19,C19<0),-((Общая_прибыль_от_операций/C19)-1),(Общая_прибыль_от_операций/C19)-1))),\"-\")","v":{"v":0,"d":"0.00%"}},{"$f":"IFERROR(IF(D19=Общая_прибыль_от_операций,0,IF(Общая_прибыль_от_операций>D19,ABS((Общая_прибыль_от_операций/D19)-1),IF(AND(Общая_прибыль_от_операций<D19,D19<0),-((Общая_прибыль_от_операций/D19)-1),(Общая_прибыль_от_операций/D19)-1))),\"-\")","v":{"v":0,"d":"0.00%"}}]
[null,"Чистая прибыль  [U=R+S-T]",{"$f":"IFERROR(C19+C14-C15,\"-\")","v":0},{"$f":"IFERROR(D19+D14-D15,\"-\")","v":0},{"$f":"Общая_прибыль_от_операций+Другая_прибыль-Суммарные_налоги","v":0},{"$f":"IFERROR(IF(Общие_доходы_от_продаж=0,\"0.00%\",Чистая_прибыль/Общие_доходы_от_продаж),\"-\")","v":"0.00%"},{"$f":"IFERROR(IF(C20=Чистая_прибыль,0,IF(Чистая_прибыль>C20,ABS((Чистая_прибыль/C20)-1),IF(AND(Чистая_прибыль<C20,C20<0),-((Чистая_прибыль/C20)-1),(Чистая_прибыль/C20)-1))),\"-\")","v":{"v":0,"d":"0.00%"}},{"$f":"IFERROR(IF(D20=Чистая_прибыль,0,IF(Чистая_прибыль>D20,ABS((Чистая_прибыль/D20)-1),IF(AND(Чистая_прибыль<D20,D20<0),-((Чистая_прибыль/D20)-1),(Чистая_прибыль/D20)-1))),\"-\")","v":{"v":0,"d":"0.00%"}}]

{"sheet":"Продажи","index":1,"n_rows":13,"n_cols":9,"rows_kept":13,"merged":[[0,7,2,8]]}
[null,{"$f":"Заголовок_книги","v":"Отчет о финансовых результатах"}]
[null,{"$f":"Название_компании","v":"Название компании"},"Указывается в тысячах рублей"]
[null,"Доходы от продаж",{"$f":"IFERROR(Доходы_от_продаж,\"-\")","v":0}]
[null,"Тип доходов","Описание","Предыдущий период","Бюджет","Текущий период","% продаж для текущего периода","% изменения по сравнению с предыдущим периодом","% отклонения от бюджета"]
[null,"Доходы от продаж","Продукт/услуга 1",{"$nulls":3},{"$f":"IFERROR(IF(ДоходыОтПродаж[[#Totals],[Текущий период]]=0,\"-\",ДоходыОтПродаж[[#This Row],[Текущий период]]/Доходы_от_продаж),\"-\")","v":"-"},{"$f":"IFERROR(IF(ДоходыОтПродаж[[#This Row],[Предыдущий период]]=ДоходыОтПродаж[[#This Row],[Текущий период]],0,IF(ДоходыОтПродаж[[#This Row],[Текущий период]]>ДоходыОтПродаж[[#This Row],[Предыдущий период]],ABS((ДоходыОтПродаж[[#This Row],[Текущий период]]/ДоходыОтПродаж[[#This Row],[Предыдущий период]])-1),IF(AND(ДоходыОтПродаж[[#This Row],[Текущий период]]<ДоходыОтПродаж[[#This Row],[Предыдущий период]],ДоходыОтПродаж[[#This Row],[Предыдущий период]]<0),-((ДоходыОтПродаж[[#This Row],[Текущий период]]/ДоходыОтПродаж[[#This Row],[Предыдущий период]])-1),(ДоходыОтПродаж[[#This Row],[Текущий период]]/ДоходыОтПродаж[[#This Row],[Предыдущий период]])-1))),\"-\")","v":{"v":0,"d":"0.00%"}},{"$f":"IFERROR(IF(ДоходыОтПродаж[[#This Row],[Бюджет]]=ДоходыОтПродаж[[#This Row],[Текущий период]],0,IF(ДоходыОтПродаж[[#This Row],[Текущий период]]>ДоходыОтПродаж[[#This Row],[Бюджет]],ABS((ДоходыОтПродаж[[#This Row],[Текущий период]]/ДоходыОтПродаж[[#This Row],[Бюджет]])-1),IF(AND(ДоходыОтПродаж[[#This Row],[Текущий период]]<ДоходыОтПродаж[[#This Row],[Бюджет]],ДоходыОтПродаж[[#This Row],[Бюджет]]<0),-((ДоходыОтПродаж[[#This Row],[Текущий период]]/ДоходыОтПродаж[[#This Row],[Бюджет]])-1),(ДоходыОтПродаж[[#This Row],[Текущий период]]/ДоходыОтПродаж[[#This Row],[Бюджет]])-1))),\"-\")","v":{"v":0,"d":"0.00%"}}]
[null,"Доходы от продаж","Продукт/услуга 2",{"$nulls":3},{"$f":"IFERROR(IF(ДоходыОтПродаж[[#Totals],[Текущий период]]=0,\"-\",ДоходыОтПродаж[[#This Row],[Текущий период]]/Доходы_от_продаж),\"-\")","v":"-"},{"$f":"IFERROR(IF(ДоходыОтПродаж[[#This Row],[Предыдущий период]]=ДоходыОтПродаж[[#This Row],[Текущий период]],0,IF(ДоходыОтПродаж[[#This Row],[Текущий период]]>ДоходыОтПродаж[[#This Row],[Предыдущий период]],ABS((ДоходыОтПродаж[[#This Row],[Текущий период]]/ДоходыОтПродаж[[#This Row],[Предыдущий период]])-1),IF(AND(ДоходыОтПродаж[[#This Row],[Текущий период]]<ДоходыОтПродаж[[#This Row],[Предыдущий период]],ДоходыОтПродаж[[#This Row],[Предыдущий период]]<0),-((ДоходыОтПродаж[[#This Row],[Текущий период]]/ДоходыОтПродаж[[#This Row],[Предыдущий период]])-1),(ДоходыОтПродаж[[#This Row],[Текущий период]]/ДоходыОтПродаж[[#This Row],[Предыдущий период]])-1))),\"-\")","v":{"v":0,"d":"0.00%"}},{"$f":"IFERROR(IF(ДоходыОтПродаж[[#This Row],[Бюджет]]=ДоходыОтПродаж[[#This Row],[Текущий период]],0,IF(ДоходыОтПродаж[[#This Row],[Текущий период]]>ДоходыОтПродаж[[#This Row],[Бюджет]],ABS((ДоходыОтПродаж[[#This Row],[Текущий период]]/ДоходыОтПродаж[[#This Row],[Бюджет]])-1),IF(AND(ДоходыОтПродаж[[#This Row],[Текущий период]]<ДоходыОтПродаж[[#This Row],[Бюджет]],ДоходыОтПродаж[[#This Row],[Бюджет]]<0),-((ДоходыОтПродаж[[#This Row],[Текущий период]]/ДоходыОтПродаж[[#This Row],[Бюджет]])-1),(ДоходыОтПродаж[[#This Row],[Текущий период]]/ДоходыОтПродаж[[#This Row],[Бюджет]])-1))),\"-\")","v":{"v":0,"d":"0.00%"}}]
[null,"Доходы от продаж","Продукт/услуга 3",{"$nulls":3},{"$f":"IFERROR(IF(ДоходыОтПродаж[[#Totals],[Текущий период]]=0,\"-\",ДоходыОтПродаж[[#This Row],[Текущий период]]/Доходы_от_продаж),\"-\")","v":"-"},{"$f":"IFERROR(IF(ДоходыОтПродаж[[#This Row],[Предыдущий период]]=ДоходыОтПродаж[[#This Row],[Текущий период]],0,IF(ДоходыОтПродаж[[#This Row],[Текущий период]]>ДоходыОтПродаж[[#This Row],[Предыдущий период]],ABS((ДоходыОтПродаж[[#This Row],[Текущий период]]/ДоходыОтПродаж[[#This Row],[Предыдущий период]])-1),IF(AND(ДоходыОтПродаж[[#This Row],[Текущий период]]<ДоходыОтПродаж[[#This Row],[Предыдущий период]],ДоходыОтПродаж[[#This Row],[Предыдущий период]]<0),-((ДоходыОтПродаж[[#This Row],[Текущий период]]/ДоходыОтПродаж[[#This Row],[Предыдущий период]])-1),(ДоходыОтПродаж[[#This Row],[Текущий период]]/ДоходыОтПродаж[[#This Row],[Предыдущий период]])-1))),\"-\")","v":{"v":0,"d":"0.00%"}},{"$f":"IFERROR(IF(ДоходыОтПродаж[[#This Row],[Бюджет]]=ДоходыОтПродаж[[#This Row],[Текущий период]],0,IF(ДоходыОтПродаж[[#This Row],[Текущий период]]>ДоходыОтПродаж[[#This Row],[Бюджет]],ABS((ДоходыОтПродаж[[#This Row],[Текущий период]]/ДоходыОтПродаж[[#This Row],[Бюджет]])-1),IF(AND(ДоходыОтПродаж[[#This Row],[Текущий период]]<ДоходыОтПродаж[[#This Row],[Бюджет]],ДоходыОтПродаж[[#This Row],[Бюджет]]<0),-((ДоходыОтПродаж[[#This Row],[Текущий период]]/ДоходыОтПродаж[[#This Row],[Бюджет]])-1),(ДоходыОтПродаж[[#This Row],[Текущий период]]/ДоходыОтПродаж[[#This Row],[Бюджет]])-1))),\"-\")","v":{"v":0,"d":"0.00%"}}]
[null,"Доходы от продаж","Продукт/услуга 4",{"$nulls":3},{"$f":"IFERROR(IF(ДоходыОтПродаж[[#Totals],[Текущий период]]=0,\"-\",ДоходыОтПродаж[[#This Row],[Текущий период]]/Доходы_от_продаж),\"-\")","v":"-"},{"$f":"IFERROR(IF(ДоходыОтПродаж[[#This Row],[Предыдущий период]]=ДоходыОтПродаж[[#This Row],[Текущий период]],0,IF(ДоходыОтПродаж[[#This Row],[Текущий период]]>ДоходыОтПродаж[[#This Row],[Предыдущий период]],ABS((ДоходыОтПродаж[[#This Row],[Текущий период]]/ДоходыОтПродаж[[#This Row],[Предыдущий период]])-1),IF(AND(ДоходыОтПродаж[[#This Row],[Текущий период]]<ДоходыОтПродаж[[#This Row],[Предыдущий период]],ДоходыОтПродаж[[#This Row],[Предыдущий период]]<0),-((ДоходыОтПродаж[[#This Row],[Текущий период]]/ДоходыОтПродаж[[#This Row],[Предыдущий период]])-1),(ДоходыОтПродаж[[#This Row],[Текущий период]]/ДоходыОтПродаж[[#This Row],[Предыдущий период]])-1))),\"-\")","v":{"v":0,"d":"0.00%"}},{"$f":"IFERROR(IF(ДоходыОтПродаж[[#This Row],[Бюджет]]=ДоходыОтПродаж[[#This Row],[Текущий период]],0,IF(ДоходыОтПродаж[[#This Row],[Текущий период]]>ДоходыОтПродаж[[#This Row],[Бюджет]],ABS((ДоходыОтПродаж[[#This Row],[Текущий период]]/ДоходыОтПродаж[[#This Row],[Бюджет]])-1),IF(AND(ДоходыОтПродаж[[#This Row],[Текущий период]]<ДоходыОтПродаж[[#This Row],[Бюджет]],ДоходыОтПродаж[[#This Row],[Бюджет]]<0),-((ДоходыОтПродаж[[#This Row],[Текущий период]]/ДоходыОтПродаж[[#This Row],[Бюджет]])-1),(ДоходыОтПродаж[[#This Row],[Текущий период]]/ДоходыОтПродаж[[#This Row],[Бюджет]])-1))),\"-\")","v":{"v":0,"d":"0.00%"}}]
[null,"Себестоимость продаж","Продукт/услуга 1",{"$nulls":3},{"$f":"IFERROR(IF(ДоходыОтПродаж[[#Totals],[Текущий период]]=0,\"-\",ДоходыОтПродаж[[#This Row],[Текущий период]]/Доходы_от_продаж),\"-\")","v":"-"},{"$f":"IFERROR(IF(ДоходыОтПродаж[[#This Row],[Предыдущий период]]=ДоходыОтПродаж[[#This Row],[Текущий период]],0,IF(ДоходыОтПродаж[[#This Row],[Текущий период]]>ДоходыОтПродаж[[#This Row],[Предыдущий период]],ABS((ДоходыОтПродаж[[#This Row],[Текущий период]]/ДоходыОтПродаж[[#This Row],[Предыдущий период]])-1),IF(AND(ДоходыОтПродаж[[#This Row],[Текущий период]]<ДоходыОтПродаж[[#This Row],[Предыдущий период]],ДоходыОтПродаж[[#This Row],[Предыдущий период]]<0),-((ДоходыОтПродаж[[#This Row],[Текущий период]]/ДоходыОтПродаж[[#This Row],[Предыдущий период]])-1),(ДоходыОтПродаж[[#This Row],[Текущий период]]/ДоходыОтПродаж[[#This Row],[Предыдущий период]])-1))),\"-\")","v":{"v":0,"d":"0.00%"}},{"$f":"IFERROR(IF(ДоходыОтПродаж[[#This Row],[Бюджет]]=ДоходыОтПродаж[[#This Row],[Текущий период]],0,IF(ДоходыОтПродаж[[#This Row],[Текущий период]]>ДоходыОтПродаж[[#This Row],[Бюджет]],ABS((ДоходыОтПродаж[[#This Row],[Текущий период]]/ДоходыОтПродаж[[#This Row],[Бюджет]])-1),IF(AND(ДоходыОтПродаж[[#This Row],[Текущий период]]<ДоходыОтПродаж[[#This Row],[Бюджет]],ДоходыОтПродаж[[#This Row],[Бюджет]]<0),-((ДоходыОтПродаж[[#This Row],[Текущий период]]/ДоходыОтПродаж[[#This Row],[Бюджет]])-1),(ДоходыОтПродаж[[#This Row],[Текущий период]]/ДоходыОтПродаж[[#This Row],[Бюджет]])-1))),\"-\")","v":{"v":0,"d":"0.00%"}}]
[null,"Себестоимость продаж","Продукт/услуга 2",{"$nulls":3},{"$f":"IFERROR(IF(ДоходыОтПродаж[[#Totals],[Текущий период]]=0,\"-\",ДоходыОтПродаж[[#This Row],[Текущий период]]/Доходы_от_продаж),\"-\")","v":"-"},{"$f":"IFERROR(IF(ДоходыОтПродаж[[#This Row],[Предыдущий период]]=ДоходыОтПродаж[[#This Row],[Текущий период]],0,IF(ДоходыОтПродаж[[#This Row],[Текущий период]]>ДоходыОтПродаж[[#This Row],[Предыдущий период]],ABS((ДоходыОтПродаж[[#This Row],[Текущий период]]/ДоходыОтПродаж[[#This Row],[Предыдущий период]])-1),IF(AND(ДоходыОтПродаж[[#This Row],[Текущий период]]<ДоходыОтПродаж[[#This Row],[Предыдущий период]],ДоходыОтПродаж[[#This Row],[Предыдущий период]]<0),-((ДоходыОтПродаж[[#This Row],[Текущий период]]/ДоходыОтПродаж[[#This Row],[Предыдущий период]])-1),(ДоходыОтПродаж[[#This Row],[Текущий период]]/ДоходыОтПродаж[[#This Row],[Предыдущий период]])-1))),\"-\")","v":{"v":0,"d":"0.00%"}},{"$f":"IFERROR(IF(ДоходыОтПродаж[[#This Row],[Бюджет]]=ДоходыОтПродаж[[#This Row],[Текущий период]],0,IF(ДоходыОтПродаж[[#This Row],[Текущий период]]>ДоходыОтПродаж[[#This Row],[Бюджет]],ABS((ДоходыОтПродаж[[#This Row],[Текущий период]]/ДоходыОтПродаж[[#This Row],[Бюджет]])-1),IF(AND(ДоходыОтПродаж[[#This Row],[Текущий период]]<ДоходыОтПродаж[[#This Row],[Бюджет]],ДоходыОтПродаж[[#This Row],[Бюджет]]<0),-((ДоходыОтПродаж[[#This Row],[Текущий период]]/ДоходыОтПродаж[[#This Row],[Бюджет]])-1),(ДоходыОтПродаж[[#This Row],[Текущий период]]/ДоходыОтПродаж[[#This Row],[Бюджет]])-1))),\"-\")","v":{"v":0,"d":"0.00%"}}]
[null,"Себестоимость продаж","Продукт/услуга 3",{"$nulls":3},{"$f":"IFERROR(IF(ДоходыОтПродаж[[#Totals],[Текущий период]]=0,\"-\",ДоходыОтПродаж[[#This Row],[Текущий период]]/Доходы_от_продаж),\"-\")","v":"-"},{"$f":"IFERROR(IF(ДоходыОтПродаж[[#This Row],[Предыдущий период]]=ДоходыОтПродаж[[#This Row],[Текущий период]],0,IF(ДоходыОтПродаж[[#This Row],[Текущий период]]>ДоходыОтПродаж[[#This Row],[Предыдущий период]],ABS((ДоходыОтПродаж[[#This Row],[Текущий период]]/ДоходыОтПродаж[[#This Row],[Предыдущий период]])-1),IF(AND(ДоходыОтПродаж[[#This Row],[Текущий период]]<ДоходыОтПродаж[[#This Row],[Предыдущий период]],ДоходыОтПродаж[[#This Row],[Предыдущий период]]<0),-((ДоходыОтПродаж[[#This Row],[Текущий период]]/ДоходыОтПродаж[[#This Row],[Предыдущий период]])-1),(ДоходыОтПродаж[[#This Row],[Текущий период]]/ДоходыОтПродаж[[#This Row],[Предыдущий период]])-1))),\"-\")","v":{"v":0,"d":"0.00%"}},{"$f":"IFERROR(IF(ДоходыОтПродаж[[#This Row],[Бюджет]]=ДоходыОтПродаж[[#This Row],[Текущий период]],0,IF(ДоходыОтПродаж[[#This Row],[Текущий период]]>ДоходыОтПродаж[[#This Row],[Бюджет]],ABS((ДоходыОтПродаж[[#This Row],[Текущий период]]/ДоходыОтПродаж[[#This Row],[Бюджет]])-1),IF(AND(ДоходыОтПродаж[[#This Row],[Текущий период]]<ДоходыОтПродаж[[#This Row],[Бюджет]],ДоходыОтПродаж[[#This Row],[Бюджет]]<0),-((ДоходыОтПродаж[[#This Row],[Текущий период]]/ДоходыОтПродаж[[#This Row],[Бюджет]])-1),(ДоходыОтПродаж[[#This Row],[Текущий период]]/ДоходыОтПродаж[[#This Row],[Бюджет]])-1))),\"-\")","v":{"v":0,"d":"0.00%"}}]
[null,"Себестоимость продаж","Продукт/услуга 4",{"$nulls":3},{"$f":"IFERROR(IF(ДоходыОтПродаж[[#Totals],[Текущий период]]=0,\"-\",ДоходыОтПродаж[[#This Row],[Текущий период]]/Доходы_от_продаж),\"-\")","v":"-"},{"$f":"IFERROR(IF(ДоходыОтПродаж[[#This Row],[Предыдущий период]]=ДоходыОтПродаж[[#This Row],[Текущий период]],0,IF(ДоходыОтПродаж[[#This Row],[Текущий период]]>ДоходыОтПродаж[[#This Row],[Предыдущий период]],ABS((ДоходыОтПродаж[[#This Row],[Текущий период]]/ДоходыОтПродаж[[#This Row],[Предыдущий период]])-1),IF(AND(ДоходыОтПродаж[[#This Row],[Текущий период]]<ДоходыОтПродаж[[#This Row],[Предыдущий период]],ДоходыОтПродаж[[#This Row],[Предыдущий период]]<0),-((ДоходыОтПродаж[[#This Row],[Текущий период]]/ДоходыОтПродаж[[#This Row],[Предыдущий период]])-1),(ДоходыОтПродаж[[#This Row],[Текущий период]]/ДоходыОтПродаж[[#This Row],[Предыдущий период]])-1))),\"-\")","v":{"v":0,"d":"0.00%"}},{"$f":"IFERROR(IF(ДоходыОтПродаж[[#This Row],[Бюджет]]=ДоходыОтПродаж[[#This Row],[Текущий период]],0,IF(ДоходыОтПродаж[[#This Row],[Текущий период]]>ДоходыОтПродаж[[#This Row],[Бюджет]],ABS((ДоходыОтПродаж[[#This Row],[Текущий период]]/ДоходыОтПродаж[[#This Row],[Бюджет]])-1),IF(AND(ДоходыОтПродаж[[#This Row],[Текущий период]]<ДоходыОтПродаж[[#This Row],[Бюджет]],ДоходыОтПродаж[[#This Row],[Бюджет]]<0),-((ДоходыОтПродаж[[#This Row],[Текущий период]]/ДоходыОтПродаж[[#This Row],[Бюджет]])-1),(ДоходыОтПродаж[[#This Row],[Текущий период]]/ДоходыОтПродаж[[#This Row],[Бюджет]])-1))),\"-\")","v":{"v":0,"d":"0.00%"}}]
[null,"Общие доходы от продаж",null,{"$f":"SUBTOTAL(109,ДоходыОтПродаж[Предыдущий период])","v":0},{"$f":"SUBTOTAL(109,ДоходыОтПродаж[Бюджет])","v":0},{"$f":"SUBTOTAL(109,ДоходыОтПродаж[Текущий период])","v":0},{"$f":"SUBTOTAL(109,ДоходыОтПродаж[% продаж для текущего периода])","v":{"v":0,"d":"0.00%"}},{"$f":"SUBTOTAL(109,ДоходыОтПродаж[% изменения по сравнению с предыдущим периодом])","v":{"v":0,"d":"0.00%"}},{"$f":"SUBTOTAL(109,ДоходыОтПродаж[% отклонения от бюджета])","v":{"v":0,"d":"0.00%"}}]

{"sheet":"Прибыль","index":2,"n_rows":7,"n_cols":9,"rows_kept":7,"merged":[[0,7,2,8]]}
[null,{"$f":"Заголовок_книги","v":"Отчет о финансовых результатах"}]
[null,{"$f":"Название_компании","v":"Название компании"},"Указывается в тысячах рублей"]
[null,"Прибыль",{"$f":"IFERROR(Прибыль[[#Totals],[Текущий период]],\"-\")","v":0}]
[null,"Тип прибыли","Описание","Предыдущий период","Бюджет","Текущий период","% продаж для текущего периода","% изменения по сравнению с предыдущим периодом","% отклонения от бюджета"]
[null,"Прибыль","Другая прибыль",{"$nulls":3},{"$f":"IFERROR(IF(Доходы_от_продаж=0,\"-\",Прибыль[[#This Row],[Текущий период]]/Доходы_от_продаж),\"-\")","v":"-"},{"$f":"IFERROR(IF(Прибыль[[#This Row],[Предыдущий период]]=Прибыль[[#This Row],[Текущий период]],0,IF(Прибыль[[#This Row],[Текущий период]]>Прибыль[[#This Row],[Предыдущий период]],ABS((Прибыль[[#This Row],[Текущий период]]/Прибыль[[#This Row],[Предыдущий период]])-1),IF(AND(Прибыль[[#This Row],[Текущий период]]<Прибыль[[#This Row],[Предыдущий период]],Прибыль[[#This Row],[Предыдущий период]]<0),-((Прибыль[[#This Row],[Текущий период]]/Прибыль[[#This Row],[Предыдущий период]])-1),(Прибыль[[#This Row],[Текущий период]]/Прибыль[[#This Row],[Предыдущий период]])-1))),\"-\")","v":{"v":0,"d":"0.00%"}},{"$f":"IFERROR(IF(Прибыль[[#This Row],[Бюджет]]=Прибыль[[#This Row],[Текущий период]],0,IF(Прибыль[[#This Row],[Текущий период]]>Прибыль[[#This Row],[Бюджет]],ABS((Прибыль[[#This Row],[Текущий период]]/Прибыль[[#This Row],[Бюджет]])-1),IF(AND(Прибыль[[#This Row],[Текущий период]]<Прибыль[[#This Row],[Бюджет]],Прибыль[[#This Row],[Бюджет]]<0),-((Прибыль[[#This Row],[Текущий период]]/Прибыль[[#This Row],[Бюджет]])-1),(Прибыль[[#This Row],[Текущий период]]/Прибыль[[#This Row],[Бюджет]])-1))),\"-\")","v":{"v":0,"d":"0.00%"}}]
[{"$nulls":6},{"$f":"IFERROR(IF(Доходы_от_продаж=0,\"-\",Прибыль[[#This Row],[Текущий период]]/Доходы_от_продаж),\"-\")","v":"-"},{"$f":"IFERROR(IF(Прибыль[[#This Row],[Предыдущий период]]=Прибыль[[#This Row],[Текущий период]],0,IF(Прибыль[[#This Row],[Текущий период]]>Прибыль[[#This Row],[Предыдущий период]],ABS((Прибыль[[#This Row],[Текущий период]]/Прибыль[[#This Row],[Предыдущий период]])-1),IF(AND(Прибыль[[#This Row],[Текущий период]]<Прибыль[[#This Row],[Предыдущий период]],Прибыль[[#This Row],[Предыдущий период]]<0),-((Прибыль[[#This Row],[Текущий период]]/Прибыль[[#This Row],[Предыдущий период]])-1),(Прибыль[[#This Row],[Текущий период]]/Прибыль[[#This Row],[Предыдущий период]])-1))),\"-\")","v":{"v":0,"d":"0.00%"}},{"$f":"IFERROR(IF(Прибыль[[#This Row],[Бюджет]]=Прибыль[[#This Row],[Текущий период]],0,IF(Прибыль[[#This Row],[Текущий период]]>Прибыль[[#This Row],[Бюджет]],ABS((Прибыль[[#This Row],[Текущий период]]/Прибыль[[#This Row],[Бюджет]])-1),IF(AND(Прибыль[[#This Row],[Текущий период]]<Прибыль[[#This Row],[Бюджет]],Прибыль[[#This Row],[Бюджет]]<0),-((Прибыль[[#This Row],[Текущий период]]/Прибыль[[#This Row],[Бюджет]])-1),(Прибыль[[#This Row],[Текущий период]]/Прибыль[[#This Row],[Бюджет]])-1))),\"-\")","v":{"v":0,"d":"0.00%"}}]
[null,"Общая прибыль от продаж",null,{"$f":"SUBTOTAL(109,Прибыль[Предыдущий период])","v":0},{"$f":"SUBTOTAL(109,Прибыль[Бюджет])","v":0},{"$f":"SUBTOTAL(109,Прибыль[Текущий период])","v":0},{"$f":"SUBTOTAL(109,Прибыль[% продаж для текущего периода])","v":{"v":0,"d":"0.00%"}},{"$f":"SUBTOTAL(109,Прибыль[% изменения по сравнению с предыдущим периодом])","v":{"v":0,"d":"0.00%"}},{"$f":"SUBTOTAL(109,Прибыль[% отклонения от бюджета])","v":{"v":0,"d":"0.00%"}}]

{"sheet":"Расходы","index":3,"n_rows":25,"n_cols":9,"rows_kept":25,"merged":[[0,7,2,8]]}
[null,{"$f":"Заголовок_книги","v":"Отчет о финансовых результатах"}]
[null,{"$f":"Название_компании","v":"Название компании"},"Указывается в тысячах рублей"]
[null,"Эксплуатационные расходы",{"$f":"IFERROR(ОперационныеРасходы[[#Totals],[Текущий период]],\"-\")","v":0}]
[null,"Тип расходов","Описание","Предыдущий период","Бюджет","Текущий период","% продаж для текущего периода","% изменения по сравнению с предыдущим периодом","% отклонения от бюджета"]
[null,"Продажи и маркетинг","Реклама",{"$nulls":3},{"$f":"IFERROR(IF(Доходы_от_продаж=0,\"-\",ОперационныеРасходы[[#This Row],[Текущий период]]/Доходы_от_продаж),\"-\")","v":"-"},{"$f":"IFERROR(IF(ОперационныеРасходы[[#This Row],[Предыдущий период]]=ОперационныеРасходы[[#This Row],[Текущий период]],0,IF(ОперационныеРасходы[[#This Row],[Текущий период]]>ОперационныеРасходы[[#This Row],[Предыдущий период]],ABS((ОперационныеРасходы[[#This Row],[Текущий период]]/ОперационныеРасходы[[#This Row],[Предыдущий период]])-1),IF(AND(ОперационныеРасходы[[#This Row],[Текущий период]]<ОперационныеРасходы[[#This Row],[Предыдущий период]],ОперационныеРасходы[[#This Row],[Предыдущий период]]<0),-((ОперационныеРасходы[[#This Row],[Текущий период]]/ОперационныеРасходы[[#This Row],[Предыдущий период]])-1),(ОперационныеРасходы[[#This Row],[Текущий период]]/ОперационныеРасходы[[#This Row],[Предыдущий период]])-1))),\"-\")","v":{"v":0,"d":"0.00%"}},{"$f":"IFERROR(IF(ОперационныеРасходы[[#This Row],[Бюджет]]=ОперационныеРасходы[[#This Row],[Текущий период]],0,IF(ОперационныеРасходы[[#This Row],[Текущий период]]>ОперационныеРасходы[[#This Row],[Бюджет]],ABS((ОперационныеРасходы[[#This Row],[Текущий период]]/ОперационныеРасходы[[#This Row],[Бюджет]])-1),IF(AND(ОперационныеРасходы[[#This Row],[Текущий период]]<ОперационныеРасходы[[#This Row],[Бюджет]],ОперационныеРасходы[[#This Row],[Бюджет]]<0),-((ОперационныеРасходы[[#This Row],[Текущий период]]/ОперационныеРасходы[[#This Row],[Бюджет]])-1),(ОперационныеРасходы[[#This Row],[Текущий период]]/ОперационныеРасходы[[#This Row],[Бюджет]])-1))),\"-\")","v":{"v":0,"d":"0.00%"}}]
[null,"Продажи и маркетинг","Прямой маркетинг",{"$nulls":3},{"$f":"IFERROR(IF(Доходы_от_продаж=0,\"-\",ОперационныеРасходы[[#This Row],[Текущий период]]/Доходы_от_продаж),\"-\")","v":"-"},{"$f":"IFERROR(IF(ОперационныеРасходы[[#This Row],[Предыдущий период]]=ОперационныеРасходы[[#This Row],[Текущий период]],0,IF(ОперационныеРасходы[[#This Row],[Текущий период]]>ОперационныеРасходы[[#This Row],[Предыдущий период]],ABS((ОперационныеРасходы[[#This Row],[Текущий период]]/ОперационныеРасходы[[#This Row],[Предыдущий период]])-1),IF(AND(ОперационныеРасходы[[#This Row],[Текущий период]]<ОперационныеРасходы[[#This Row],[Предыдущий период]],ОперационныеРасходы[[#This Row],[Предыдущий период]]<0),-((ОперационныеРасходы[[#This Row],[Текущий период]]/ОперационныеРасходы[[#This Row],[Предыдущий период]])-1),(ОперационныеРасходы[[#This Row],[Текущий период]]/ОперационныеРасходы[[#This Row],[Предыдущий период]])-1))),\"-\")","v":{"v":0,"d":"0.00%"}},{"$f":"IFERROR(IF(ОперационныеРасходы[[#This Row],[Бюджет]]=ОперационныеРасходы[[#This Row],[Текущий период]],0,IF(ОперационныеРасходы[[#This Row],[Текущий период]]>ОперационныеРасходы[[#This Row],[Бюджет]],ABS((ОперационныеРасходы[[#This Row],[Текущий период]]/ОперационныеРасходы[[#This Row],[Бюджет]])-1),IF(AND(ОперационныеРасходы[[#This Row],[Текущий период]]<ОперационныеРасходы[[#This Row],[Бюджет]],ОперационныеРасходы[[#This Row],[Бюджет]]<0),-((ОперационныеРасходы[[#This Row],[Текущий период]]/ОперационныеРасходы[[#This Row],[Бюджет]])-1),(ОперационныеРасходы[[#This Row],[Текущий период]]/ОперационныеРасходы[[#This Row],[Бюджет]])-1))),\"-\")","v":{"v":0,"d":"0.00%"}}]
[null,"Продажи и маркетинг","Прочие расходы (укажите)",{"$nulls":3},{"$f":"IFERROR(IF(Доходы_от_продаж=0,\"-\",ОперационныеРасходы[[#This Row],[Текущий период]]/Доходы_от_продаж),\"-\")","v":"-"},{"$f":"IFERROR(IF(ОперационныеРасходы[[#This Row],[Предыдущий период]]=ОперационныеРасходы[[#This Row],[Текущий период]],0,IF(ОперационныеРасходы[[#This Row],[Текущий период]]>ОперационныеРасходы[[#This Row],[Предыдущий период]],ABS((ОперационныеРасходы[[#This Row],[Текущий период]]/ОперационныеРасходы[[#This Row],[Предыдущий период]])-1),IF(AND(ОперационныеРасходы[[#This Row],[Текущий период]]<ОперационныеРасходы[[#This Row],[Предыдущий период]],ОперационныеРасходы[[#This Row],[Предыдущий период]]<0),-((ОперационныеРасходы[[#This Row],[Текущий период]]/ОперационныеРасходы[[#This Row],[Предыдущий период]])-1),(ОперационныеРасходы[[#This Row],[Текущий период]]/ОперационныеРасходы[[#This Row],[Предыдущий период]])-1))),\"-\")","v":{"v":0,"d":"0.00%"}},{"$f":"IFERROR(IF(ОперационныеРасходы[[#This Row],[Бюджет]]=ОперационныеРасходы[[#This Row],[Текущий период]],0,IF(ОперационныеРасходы[[#This Row],[Текущий период]]>ОперационныеРасходы[[#This Row],[Бюджет]],ABS((ОперационныеРасходы[[#This Row],[Текущий период]]/ОперационныеРасходы[[#This Row],[Бюджет]])-1),IF(AND(ОперационныеРасходы[[#This Row],[Текущий период]]<ОперационныеРасходы[[#This Row],[Бюджет]],ОперационныеРасходы[[#This Row],[Бюджет]]<0),-((ОперационныеРасходы[[#This Row],[Текущий период]]/ОперационныеРасходы[[#This Row],[Бюджет]])-1),(ОперационныеРасходы[[#This Row],[Текущий период]]/ОперационныеРасходы[[#This Row],[Бюджет]])-1))),\"-\")","v":{"v":0,"d":"0.00%"}}]
[null,"Продажи и маркетинг","Прочие расходы (укажите)",{"$nulls":3},{"$f":"IFERROR(IF(Доходы_от_продаж=0,\"-\",ОперационныеРасходы[[#This Row],[Текущий период]]/Доходы_от_продаж),\"-\")","v":"-"},{"$f":"IFERROR(IF(ОперационныеРасходы[[#This Row],[Предыдущий период]]=ОперационныеРасходы[[#This Row],[Текущий период]],0,IF(ОперационныеРасходы[[#This Row],[Текущий период]]>ОперационныеРасходы[[#This Row],[Предыдущий период]],ABS((ОперационныеРасходы[[#This Row],[Текущий период]]/ОперационныеРасходы[[#This Row],[Предыдущий период]])-1),IF(AND(ОперационныеРасходы[[#This Row],[Текущий период]]<ОперационныеРасходы[[#This Row],[Предыдущий период]],ОперационныеРасходы[[#This Row],[Предыдущий период]]<0),-((ОперационныеРасходы[[#This Row],[Текущий период]]/ОперационныеРасходы[[#This Row],[Предыдущий период]])-1),(ОперационныеРасходы[[#This Row],[Текущий период]]/ОперационныеРасходы[[#This Row],[Предыдущий период]])-1))),\"-\")","v":{"v":0,"d":"0.00%"}},{"$f":"IFERROR(IF(ОперационныеРасходы[[#This Row],[Бюджет]]=ОперационныеРасходы[[#This Row],[Текущий период]],0,IF(ОперационныеРасходы[[#This Row],[Текущий период]]>ОперационныеРасходы[[#This Row],[Бюджет]],ABS((ОперационныеРасходы[[#This Row],[Текущий период]]/ОперационныеРасходы[[#This Row],[Бюджет]])-1),IF(AND(ОперационныеРасходы[[#This Row],[Текущий период]]<ОперационныеРасходы[[#This Row],[Бюджет]],ОперационныеРасходы[[#This Row],[Бюджет]]<0),-((ОперационныеРасходы[[#This Row],[Текущий период]]/ОперационныеРасходы[[#This Row],[Бюджет]])-1),(ОперационныеРасходы[[#This Row],[Текущий период]]/ОперационныеРасходы[[#This Row],[Бюджет]])-1))),\"-\")","v":{"v":0,"d":"0.00%"}}]
[null,"Исследования и разработки","Лицензии на технологии",{"$nulls":3},{"$f":"IFERROR(IF(Доходы_от_продаж=0,\"-\",ОперационныеРасходы[[#This Row],[Текущий период]]/Доходы_от_продаж),\"-\")","v":"-"},{"$f":"IFERROR(IF(ОперационныеРасходы[[#This Row],[Предыдущий период]]=ОперационныеРасходы[[#This Row],[Текущий период]],0,IF(ОперационныеРасходы[[#This Row],[Текущий период]]>ОперационныеРасходы[[#This Row],[Предыдущий период]],ABS((ОперационныеРасходы[[#This Row],[Текущий период]]/ОперационныеРасходы[[#This Row],[Предыдущий период]])-1),IF(AND(ОперационныеРасходы[[#This Row],[Текущий период]]<ОперационныеРасходы[[#This Row],[Предыдущий период]],ОперационныеРасходы[[#This Row],[Предыдущий период]]<0),-((ОперационныеРасходы[[#This Row],[Текущий период]]/ОперационныеРасходы[[#This Row],[Предыдущий период]])-1),(ОперационныеРасходы[[#This Row],[Текущий период]]/ОперационныеРасходы[[#This Row],[Предыдущий период]])-1))),\"-\")","v":{"v":0,"d":"0.00%"}},{"$f":"IFERROR(IF(ОперационныеРасходы[[#This Row],[Бюджет]]=ОперационныеРасходы[[#This Row],[Текущий период]],0,IF(ОперационныеРасходы[[#This Row],[Текущий период]]>ОперационныеРасходы[[#This Row],[Бюджет]],ABS((ОперационныеРасходы[[#This Row],[Текущий период]]/ОперационныеРасходы[[#This Row],[Бюджет]])-1),IF(AND(ОперационныеРасходы[[#This Row],[Текущий период]]<ОперационныеРасходы[[#This Row],[Бюджет]],ОперационныеРасходы[[#This Row],[Бюджет]]<0),-((ОперационныеРасходы[[#This Row],[Текущий период]]/ОперационныеРасходы[[#This Row],[Бюджет]])-1),(ОперационныеРасходы[[#This Row],[Текущий период]]/ОперационныеРасходы[[#This Row],[Бюджет]])-1))),\"-\")","v":{"v":0,"d":"0.00%"}}]
[null,"Исследования и разработки","Патенты ",{"$nulls":3},{"$f":"IFERROR(IF(Доходы_от_продаж=0,\"-\",ОперационныеРасходы[[#This Row],[Текущий период]]/Доходы_от_продаж),\"-\")","v":"-"},{"$f":"IFERROR(IF(ОперационныеРасходы[[#This Row],[Предыдущий период]]=ОперационныеРасходы[[#This Row],[Текущий период]],0,IF(ОперационныеРасходы[[#This Row],[Текущий период]]>ОперационныеРасходы[[#This Row],[Предыдущий период]],ABS((ОперационныеРасходы[[#This Row],[Текущий период]]/ОперационныеРасходы[[#This Row],[Предыдущий период]])-1),IF(AND(ОперационныеРасходы[[#This Row],[Текущий период]]<ОперационныеРасходы[[#This Row],[Предыдущий период]],ОперационныеРасходы[[#This Row],[Предыдущий период]]<0),-((ОперационныеРасходы[[#This Row],[Текущий период]]/ОперационныеРасходы[[#This Row],[Предыдущий период]])-1),(ОперационныеРасходы[[#This Row],[Текущий период]]/ОперационныеРасходы[[#This Row],[Предыдущий период]])-1))),\"-\")","v":{"v":0,"d":"0.00%"}},{"$f":"IFERROR(IF(ОперационныеРасходы[[#This Row],[Бюджет]]=ОперационныеРасходы[[#This Row],[Текущий период]],0,IF(ОперационныеРасходы[[#This Row],[Текущий период]]>ОперационныеРасходы[[#This Row],[Бюджет]],ABS((ОперационныеРасходы[[#This Row],[Текущий период]]/ОперационныеРасходы[[#This Row],[Бюджет]])-1),IF(AND(ОперационныеРасходы[[#This Row],[Текущий период]]<ОперационныеРасходы[[#This Row],[Бюджет]],ОперационныеРасходы[[#This Row],[Бюджет]]<0),-((ОперационныеРасходы[[#This Row],[Текущий период]]/ОперационныеРасходы[[#This Row],[Бюджет]])-1),(ОперационныеРасходы[[#This Row],[Текущий период]]/ОперационныеРасходы[[#This Row],[Бюджет]])-1))),\"-\")","v":{"v":0,"d":"0.00%"}}]
[null,"Исследования и разработки","Прочие расходы (укажите)",{"$nulls":3},{"$f":"IFERROR(IF(Доходы_от_продаж=0,\"-\",ОперационныеРасходы[[#This Row],[Текущий период]]/Доходы_от_продаж),\"-\")","v":"-"},{"$f":"IFERROR(IF(ОперационныеРасходы[[#This Row],[Предыдущий период]]=ОперационныеРасходы[[#This Row],[Текущий период]],0,IF(ОперационныеРасходы[[#This Row],[Текущий период]]>ОперационныеРасходы[[#This Row],[Предыдущий период]],ABS((ОперационныеРасходы[[#This Row],[Текущий период]]/ОперационныеРасходы[[#This Row],[Предыдущий период]])-1),IF(AND(ОперационныеРасходы[[#This Row],[Текущий период]]<ОперационныеРасходы[[#This Row],[Предыдущий период]],ОперационныеРасходы[[#This Row],[Предыдущий период]]<0),-((ОперационныеРасходы[[#This Row],[Текущий период]]/ОперационныеРасходы[[#This Row],[Предыдущий период]])-1),(ОперационныеРасходы[[#This Row],[Текущий период]]/ОперационныеРасходы[[#This Row],[Предыдущий период]])-1))),\"-\")","v":{"v":0,"d":"0.00%"}},{"$f":"IFERROR(IF(ОперационныеРасходы[[#This Row],[Бюджет]]=ОперационныеРасходы[[#This Row],[Текущий период]],0,IF(ОперационныеРасходы[[#This Row],[Текущий период]]>ОперационныеРасходы[[#This Row],[Бюджет]],ABS((ОперационныеРасходы[[#This Row],[Текущий период]]/ОперационныеРасходы[[#This Row],[Бюджет]])-1),IF(AND(ОперационныеРасходы[[#This Row],[Текущий период]]<ОперационныеРасходы[[#This Row],[Бюджет]],ОперационныеРасходы[[#This Row],[Бюджет]]<0),-((ОперационныеРасходы[[#This Row],[Текущий период]]/ОперационныеРасходы[[#This Row],[Бюджет]])-1),(ОперационныеРасходы[[#This Row],[Текущий период]]/ОперационныеРасходы[[#This Row],[Бюджет]])-1))),\"-\")","v":{"v":0,"d":"0.00%"}}]
[null,"Исследования и разработки","Прочие расходы (укажите)",{"$nulls":3},{"$f":"IFERROR(IF(Доходы_от_продаж=0,\"-\",ОперационныеРасходы[[#This Row],[Текущий период]]/Доходы_от_продаж),\"-\")","v":"-"},{"$f":"IFERROR(IF(ОперационныеРасходы[[#This Row],[Предыдущий период]]=ОперационныеРасходы[[#This Row],[Текущий период]],0,IF(ОперационныеРасходы[[#This Row],[Текущий период]]>ОперационныеРасходы[[#This Row],[Предыдущий период]],ABS((ОперационныеРасходы[[#This Row],[Текущий период]]/ОперационныеРасходы[[#This Row],[Предыдущий период]])-1),IF(AND(ОперационныеРасходы[[#This Row],[Текущий период]]<ОперационныеРасходы[[#This Row],[Предыдущий период]],ОперационныеРасходы[[#This Row],[Предыдущий период]]<0),-((ОперационныеРасходы[[#This Row],[Текущий период]]/ОперационныеРасходы[[#This Row],[Предыдущий период]])-1),(ОперационныеРасходы[[#This Row],[Текущий период]]/ОперационныеРасходы[[#This Row],[Предыдущий период]])-1))),\"-\")","v":{"v":0,"d":"0.00%"}},{"$f":"IFERROR(IF(ОперационныеРасходы[[#This Row],[Бюджет]]=ОперационныеРасходы[[#This Row],[Текущий период]],0,IF(ОперационныеРасходы[[#This Row],[Текущий период]]>ОперационныеРасходы[[#This Row],[Бюджет]],ABS((ОперационныеРасходы[[#This Row],[Текущий период]]/ОперационныеРасходы[[#This Row],[Бюджет]])-1),IF(AND(ОперационныеРасходы[[#This Row],[Текущий период]]<ОперационныеРасходы[[#This Row],[Бюджет]],ОперационныеРасходы[[#This Row],[Бюджет]]<0),-((ОперационныеРасходы[[#This Row],[Текущий период]]/ОперационныеРасходы[[#This Row],[Бюджет]])-1),(ОперационныеРасходы[[#This Row],[Текущий период]]/ОперационныеРасходы[[#This Row],[Бюджет]])-1))),\"-\")","v":{"v":0,"d":"0.00%"}}]
[null,"Общие и административные","Заработная плата и оклады",{"$nulls":3},{"$f":"IFERROR(IF(Доходы_от_продаж=0,\"-\",ОперационныеРасходы[[#This Row],[Текущий период]]/Доходы_от_продаж),\"-\")","v":"-"},{"$f":"IFERROR(IF(ОперационныеРасходы[[#This Row],[Предыдущий период]]=ОперационныеРасходы[[#This Row],[Текущий период]],0,IF(ОперационныеРасходы[[#This Row],[Текущий период]]>ОперационныеРасходы[[#This Row],[Предыдущий период]],ABS((ОперационныеРасходы[[#This Row],[Текущий период]]/ОперационныеРасходы[[#This Row],[Предыдущий период]])-1),IF(AND(ОперационныеРасходы[[#This Row],[Текущий период]]<ОперационныеРасходы[[#This Row],[Предыдущий период]],ОперационныеРасходы[[#This Row],[Предыдущий период]]<0),-((ОперационныеРасходы[[#This Row],[Текущий период]]/ОперационныеРасходы[[#This Row],[Предыдущий период]])-1),(ОперационныеРасходы[[#This Row],[Текущий период]]/ОперационныеРасходы[[#This Row],[Предыдущий период]])-1))),\"-\")","v":{"v":0,"d":"0.00%"}},{"$f":"IFERROR(IF(ОперационныеРасходы[[#This Row],[Бюджет]]=ОперационныеРасходы[[#This Row],[Текущий период]],0,IF(ОперационныеРасходы[[#This Row],[Текущий период]]>ОперационныеРасходы[[#This Row],[Бюджет]],ABS((ОперационныеРасходы[[#This Row],[Текущий период]]/ОперационныеРасходы[[#This Row],[Бюджет]])-1),IF(AND(ОперационныеРасходы[[#This Row],[Текущий период]]<ОперационныеРасходы[[#This Row],[Бюджет]],ОперационныеРасходы[[#This Row],[Бюджет]]<0),-((ОперационныеРасходы[[#This Row],[Текущий период]]/ОперационныеРасходы[[#This Row],[Бюджет]])-1),(ОперационныеРасходы[[#This Row],[Текущий период]]/ОперационныеРасходы[[#This Row],[Бюджет]])-1))),\"-\")","v":{"v":0,"d":"0.00%"}}]
[null,"Общие и административные","Сторонние услуги",{"$nulls":3},{"$f":"IFERROR(IF(Доходы_от_продаж=0,\"-\",ОперационныеРасходы[[#This Row],[Текущий период]]/Доходы_от_продаж),\"-\")","v":"-"},{"$f":"IFERROR(IF(ОперационныеРасходы[[#This Row],[Предыдущий период]]=ОперационныеРасходы[[#This Row],[Текущий период]],0,IF(ОперационныеРасходы[[#This Row],[Текущий период]]>ОперационныеРасходы[[#This Row],[Предыдущий период]],ABS((ОперационныеРасходы[[#This Row],[Текущий период]]/ОперационныеРасходы[[#This Row],[Предыдущий период]])-1),IF(AND(ОперационныеРасходы[[#This Row],[Текущий период]]<ОперационныеРасходы[[#This Row],[Предыдущий период]],ОперационныеРасходы[[#This Row],[Предыдущий период]]<0),-((ОперационныеРасходы[[#This Row],[Текущий период]]/ОперационныеРасходы[[#This Row],[Предыдущий период]])-1),(ОперационныеРасходы[[#This Row],[Текущий период]]/ОперационныеРасходы[[#This Row],[Предыдущий период]])-1))),\"-\")","v":{"v":0,"d":"0.00%"}},{"$f":"IFERROR(IF(ОперационныеРасходы[[#This Row],[Бюджет]]=ОперационныеРасходы[[#This Row],[Текущий период]],0,IF(ОперационныеРасходы[[#This Row],[Текущий период]]>ОперационныеРасходы[[#This Row],[Бюджет]],ABS((ОперационныеРасходы[[#This Row],[Текущий период]]/ОперационныеРасходы[[#This Row],[Бюджет]])-1),IF(AND(ОперационныеРасходы[[#This Row],[Текущий период]]<ОперационныеРасходы[[#This Row],[Бюджет]],ОперационныеРасходы[[#This Row],[Бюджет]]<0),-((ОперационныеРасходы[[#This Row],[Текущий период]]/ОперационныеРасходы[[#This Row],[Бюджет]])-1),(ОперационныеРасходы[[#This Row],[Текущий период]]/ОперационныеРасходы[[#This Row],[Бюджет]])-1))),\"-\")","v":{"v":0,"d":"0.00%"}}]
[null,"Общие и административные","Материалы",{"$nulls":3},{"$f":"IFERROR(IF(Доходы_от_продаж=0,\"-\",ОперационныеРасходы[[#This Row],[Текущий период]]/Доходы_от_продаж),\"-\")","v":"-"},{"$f":"IFERROR(IF(ОперационныеРасходы[[#This Row],[Предыдущий период]]=ОперационныеРасходы[[#This Row],[Текущий период]],0,IF(ОперационныеРасходы[[#This Row],[Текущий период]]>ОперационныеРасходы[[#This Row],[Предыдущий период]],ABS((ОперационныеРасходы[[#This Row],[Текущий период]]/ОперационныеРасходы[[#This Row],[Предыдущий период]])-1),IF(AND(ОперационныеРасходы[[#This Row],[Текущий период]]<ОперационныеРасходы[[#This Row],[Предыдущий период]],ОперационныеРасходы[[#This Row],[Предыдущий период]]<0),-((ОперационныеРасходы[[#This Row],[Текущий период]]/ОперационныеРасходы[[#This Row],[Предыдущий период]])-1),(ОперационныеРасходы[[#This Row],[Текущий период]]/ОперационныеРасходы[[#This Row],[Предыдущий период]])-1))),\"-\")","v":{"v":0,"d":"0.00%"}},{"$f":"IFERROR(IF(ОперационныеРасходы[[#This Row],[Бюджет]]=ОперационныеРасходы[[#This Row],[Текущий период]],0,IF(ОперационныеРасходы[[#This Row],[Текущий период]]>ОперационныеРасходы[[#This Row],[Бюджет]],ABS((ОперационныеРасходы[[#This Row],[Текущий период]]/ОперационныеРасходы[[#This Row],[Бюджет]])-1),IF(AND(ОперационныеРасходы[[#This Row],[Текущий период]]<ОперационныеРасходы[[#This Row],[Бюджет]],ОперационныеРасходы[[#This Row],[Бюджет]]<0),-((ОперационныеРасходы[[#This Row],[Текущий период]]/ОперационныеРасходы[[#This Row],[Бюджет]])-1),(ОперационныеРасходы[[#This Row],[Текущий период]]/ОперационныеРасходы[[#This Row],[Бюджет]])-1))),\"-\")","v":{"v":0,"d":"0.00%"}}]
[null,"Общие и административные","Питание и представительские расходы",{"$nulls":3},{"$f":"IFERROR(IF(Доходы_от_продаж=0,\"-\",ОперационныеРасходы[[#This Row],[Текущий период]]/Доходы_от_продаж),\"-\")","v":"-"},{"$f":"IFERROR(IF(ОперационныеРасходы[[#This Row],[Предыдущий период]]=ОперационныеРасходы[[#This Row],[Текущий период]],0,IF(ОперационныеРасходы[[#This Row],[Текущий период]]>ОперационныеРасходы[[#This Row],[Предыдущий период]],ABS((ОперационныеРасходы[[#This Row],[Текущий период]]/ОперационныеРасходы[[#This Row],[Предыдущий период]])-1),IF(AND(ОперационныеРасходы[[#This Row],[Текущий период]]<ОперационныеРасходы[[#This Row],[Предыдущий период]],ОперационныеРасходы[[#This Row],[Предыдущий период]]<0),-((ОперационныеРасходы[[#This Row],[Текущий период]]/ОперационныеРасходы[[#This Row],[Предыдущий период]])-1),(ОперационныеРасходы[[#This Row],[Текущий период]]/ОперационныеРасходы[[#This Row],[Предыдущий период]])-1))),\"-\")","v":{"v":0,"d":"0.00%"}},{"$f":"IFERROR(IF(ОперационныеРасходы[[#This Row],[Бюджет]]=ОперационныеРасходы[[#This Row],[Текущий период]],0,IF(ОперационныеРасходы[[#This Row],[Текущий период]]>ОперационныеРасходы[[#This Row],[Бюджет]],ABS((ОперационныеРасходы[[#This Row],[Текущий период]]/ОперационныеРасходы[[#This Row],[Бюджет]])-1),IF(AND(ОперационныеРасходы[[#This Row],[Текущий период]]<ОперационныеРасходы[[#This Row],[Бюджет]],ОперационныеРасходы[[#This Row],[Бюджет]]<0),-((ОперационныеРасходы[[#This Row],[Текущий период]]/ОперационныеРасходы[[#This Row],[Бюджет]])-1),(ОперационныеРасходы[[#This Row],[Текущий период]]/ОперационныеРасходы[[#This Row],[Бюджет]])-1))),\"-\")","v":{"v":0,"d":"0.00%"}}]
[null,"Общие и административные","Аренда",{"$nulls":3},{"$f":"IFERROR(IF(Доходы_от_продаж=0,\"-\",ОперационныеРасходы[[#This Row],[Текущий период]]/Доходы_от_продаж),\"-\")","v":"-"},{"$f":"IFERROR(IF(ОперационныеРасходы[[#This Row],[Предыдущий период]]=ОперационныеРасходы[[#This Row],[Текущий период]],0,IF(ОперационныеРасходы[[#This Row],[Текущий период]]>ОперационныеРасходы[[#This Row],[Предыдущий период]],ABS((ОперационныеРасходы[[#This Row],[Текущий период]]/ОперационныеРасходы[[#This Row],[Предыдущий период]])-1),IF(AND(ОперационныеРасходы[[#This Row],[Текущий период]]<ОперационныеРасходы[[#This Row],[Предыдущий период]],ОперационныеРасходы[[#This Row],[Предыдущий период]]<0),-((ОперационныеРасходы[[#This Row],[Текущий период]]/ОперационныеРасходы[[#This Row],[Предыдущий период]])-1),(ОперационныеРасходы[[#This Row],[Текущий период]]/ОперационныеРасходы[[#This Row],[Предыдущий период]])-1))),\"-\")","v":{"v":0,"d":"0.00%"}},{"$f":"IFERROR(IF(ОперационныеРасходы[[#This Row],[Бюджет]]=ОперационныеРасходы[[#This Row],[Текущий период]],0,IF(ОперационныеРасходы[[#This Row],[Текущий период]]>ОперационныеРасходы[[#This Row],[Бюджет]],ABS((ОперационныеРасходы[[#This Row],[Текущий период]]/ОперационныеРасходы[[#This Row],[Бюджет]])-1),IF(AND(ОперационныеРасходы[[#This Row],[Текущий период]]<ОперационныеРасходы[[#This Row],[Бюджет]],ОперационныеРасходы[[#This Row],[Бюджет]]<0),-((ОперационныеРасходы[[#This Row],[Текущий период]]/ОперационныеРасходы[[#This Row],[Бюджет]])-1),(ОперационныеРасходы[[#This Row],[Текущий период]]/ОперационныеРасходы[[#This Row],[Бюджет]])-1))),\"-\")","v":{"v":0,"d":"0.00%"}}]
[null,"Общие и административные","Телефонная связь",{"$nulls":3},{"$f":"IFERROR(IF(Доходы_от_продаж=0,\"-\",ОперационныеРасходы[[#This Row],[Текущий период]]/Доходы_от_продаж),\"-\")","v":"-"},{"$f":"IFERROR(IF(ОперационныеРасходы[[#This Row],[Предыдущий период]]=ОперационныеРасходы[[#This Row],[Текущий период]],0,IF(ОперационныеРасходы[[#This Row],[Текущий период]]>ОперационныеРасходы[[#This Row],[Предыдущий период]],ABS((ОперационныеРасходы[[#This Row],[Текущий период]]/ОперационныеРасходы[[#This Row],[Предыдущий период]])-1),IF(AND(ОперационныеРасходы[[#This Row],[Текущий период]]<ОперационныеРасходы[[#This Row],[Предыдущий период]],ОперационныеРасходы[[#This Row],[Предыдущий период]]<0),-((ОперационныеРасходы[[#This Row],[Текущий период]]/ОперационныеРасходы[[#This Row],[Предыдущий период]])-1),(ОперационныеРасходы[[#This Row],[Текущий период]]/ОперационныеРасходы[[#This Row],[Предыдущий период]])-1))),\"-\")","v":{"v":0,"d":"0.00%"}},{"$f":"IFERROR(IF(ОперационныеРасходы[[#This Row],[Бюджет]]=ОперационныеРасходы[[#This Row],[Текущий период]],0,IF(ОперационныеРасходы[[#This Row],[Текущий период]]>ОперационныеРасходы[[#This Row],[Бюджет]],ABS((ОперационныеРасходы[[#This Row],[Текущий период]]/ОперационныеРасходы[[#This Row],[Бюджет]])-1),IF(AND(ОперационныеРасходы[[#This Row],[Текущий период]]<ОперационныеРасходы[[#This Row],[Бюджет]],ОперационныеРасходы[[#This Row],[Бюджет]]<0),-((ОперационныеРасходы[[#This Row],[Текущий период]]/ОперационныеРасходы[[#This Row],[Бюджет]])-1),(ОперационныеРасходы[[#This Row],[Текущий период]]/ОперационныеРасходы[[#This Row],[Бюджет]])-1))),\"-\")","v":{"v":0,"d":"0.00%"}}]
[null,"Общие и административные","Коммунальные услуги",{"$nulls":3},{"$f":"IFERROR(IF(Доходы_от_продаж=0,\"-\",ОперационныеРасходы[[#This Row],[Текущий период]]/Доходы_от_продаж),\"-\")","v":"-"},{"$f":"IFERROR(IF(ОперационныеРасходы[[#This Row],[Предыдущий период]]=ОперационныеРасходы[[#This Row],[Текущий период]],0,IF(ОперационныеРасходы[[#This Row],[Текущий период]]>ОперационныеРасходы[[#This Row],[Предыдущий период]],ABS((ОперационныеРасходы[[#This Row],[Текущий период]]/ОперационныеРасходы[[#This Row],[Предыдущий период]])-1),IF(AND(ОперационныеРасходы[[#This Row],[Текущий период]]<ОперационныеРасходы[[#This Row],[Предыдущий период]],ОперационныеРасходы[[#This Row],[Предыдущий период]]<0),-((ОперационныеРасходы[[#This Row],[Текущий период]]/ОперационныеРасходы[[#This Row],[Предыдущий период]])-1),(ОперационныеРасходы[[#This Row],[Текущий период]]/ОперационныеРасходы[[#This Row],[Предыдущий период]])-1))),\"-\")","v":{"v":0,"d":"0.00%"}},{"$f":"IFERROR(IF(ОперационныеРасходы[[#This Row],[Бюджет]]=ОперационныеРасходы[[#This Row],[Текущий период]],0,IF(ОперационныеРасходы[[#This Row],[Текущий период]]>ОперационныеРасходы[[#This Row],[Бюджет]],ABS((ОперационныеРасходы[[#This Row],[Текущий период]]/ОперационныеРасходы[[#This Row],[Бюджет]])-1),IF(AND(ОперационныеРасходы[[#This Row],[Текущий период]]<ОперационныеРасходы[[#This Row],[Бюджет]],ОперационныеРасходы[[#This Row],[Бюджет]]<0),-((ОперационныеРасходы[[#This Row],[Текущий период]]/ОперационныеРасходы[[#This Row],[Бюджет]])-1),(ОперационныеРасходы[[#This Row],[Текущий период]]/ОперационныеРасходы[[#This Row],[Бюджет]])-1))),\"-\")","v":{"v":0,"d":"0.00%"}}]
[null,"Общие и административные","Амортизация",{"$nulls":3},{"$f":"IFERROR(IF(Доходы_от_продаж=0,\"-\",ОперационныеРасходы[[#This Row],[Текущий период]]/Доходы_от_продаж),\"-\")","v":"-"},{"$f":"IFERROR(IF(ОперационныеРасходы[[#This Row],[Предыдущий период]]=ОперационныеРасходы[[#This Row],[Текущий период]],0,IF(ОперационныеРасходы[[#This Row],[Текущий период]]>ОперационныеРасходы[[#This Row],[Предыдущий период]],ABS((ОперационныеРасходы[[#This Row],[Текущий период]]/ОперационныеРасходы[[#This Row],[Предыдущий период]])-1),IF(AND(ОперационныеРасходы[[#This Row],[Текущий период]]<ОперационныеРасходы[[#This Row],[Предыдущий период]],ОперационныеРасходы[[#This Row],[Предыдущий период]]<0),-((ОперационныеРасходы[[#This Row],[Текущий период]]/ОперационныеРасходы[[#This Row],[Предыдущий период]])-1),(ОперационныеРасходы[[#This Row],[Текущий период]]/ОперационныеРасходы[[#This Row],[Предыдущий период]])-1))),\"-\")","v":{"v":0,"d":"0.00%"}},{"$f":"IFERROR(IF(ОперационныеРасходы[[#This Row],[Бюджет]]=ОперационныеРасходы[[#This Row],[Текущий период]],0,IF(ОперационныеРасходы[[#This Row],[Текущий период]]>ОперационныеРасходы[[#This Row],[Бюджет]],ABS((ОперационныеРасходы[[#This Row],[Текущий период]]/ОперационныеРасходы[[#This Row],[Бюджет]])-1),IF(AND(ОперационныеРасходы[[#This Row],[Текущий период]]<ОперационныеРасходы[[#This Row],[Бюджет]],ОперационныеРасходы[[#This Row],[Бюджет]]<0),-((ОперационныеРасходы[[#This Row],[Текущий период]]/ОперационныеРасходы[[#This Row],[Бюджет]])-1),(ОперационныеРасходы[[#This Row],[Текущий период]]/ОперационныеРасходы[[#This Row],[Бюджет]])-1))),\"-\")","v":{"v":0,"d":"0.00%"}}]
[null,"Общие и административные","Страхование",{"$nulls":3},{"$f":"IFERROR(IF(Доходы_от_продаж=0,\"-\",ОперационныеРасходы[[#This Row],[Текущий период]]/Доходы_от_продаж),\"-\")","v":"-"},{"$f":"IFERROR(IF(ОперационныеРасходы[[#This Row],[Предыдущий период]]=ОперационныеРасходы[[#This Row],[Текущий период]],0,IF(ОперационныеРасходы[[#This Row],[Текущий период]]>ОперационныеРасходы[[#This Row],[Предыдущий период]],ABS((ОперационныеРасходы[[#This Row],[Текущий период]]/ОперационныеРасходы[[#This Row],[Предыдущий период]])-1),IF(AND(ОперационныеРасходы[[#This Row],[Текущий период]]<ОперационныеРасходы[[#This Row],[Предыдущий период]],ОперационныеРасходы[[#This Row],[Предыдущий период]]<0),-((ОперационныеРасходы[[#This Row],[Текущий период]]/ОперационныеРасходы[[#This Row],[Предыдущий период]])-1),(ОперационныеРасходы[[#This Row],[Текущий период]]/ОперационныеРасходы[[#This Row],[Предыдущий период]])-1))),\"-\")","v":{"v":0,"d":"0.00%"}},{"$f":"IFERROR(IF(ОперационныеРасходы[[#This Row],[Бюджет]]=ОперационныеРасходы[[#This Row],[Текущий период]],0,IF(ОперационныеРасходы[[#This Row],[Текущий период]]>ОперационныеРасходы[[#This Row],[Бюджет]],ABS((ОперационныеРасходы[[#This Row],[Текущий период]]/ОперационныеРасходы[[#This Row],[Бюджет]])-1),IF(AND(ОперационныеРасходы[[#This Row],[Текущий период]]<ОперационныеРасходы[[#This Row],[Бюджет]],ОперационныеРасходы[[#This Row],[Бюджет]]<0),-((ОперационныеРасходы[[#This Row],[Текущий период]]/ОперационныеРасходы[[#This Row],[Бюджет]])-1),(ОперационныеРасходы[[#This Row],[Текущий период]]/ОперационныеРасходы[[#This Row],[Бюджет]])-1))),\"-\")","v":{"v":0,"d":"0.00%"}}]
[null,"Общие и административные","Ремонт и обслуживание",{"$nulls":3},{"$f":"IFERROR(IF(Доходы_от_продаж=0,\"-\",ОперационныеРасходы[[#This Row],[Текущий период]]/Доходы_от_продаж),\"-\")","v":"-"},{"$f":"IFERROR(IF(ОперационныеРасходы[[#This Row],[Предыдущий период]]=ОперационныеРасходы[[#This Row],[Текущий период]],0,IF(ОперационныеРасходы[[#This Row],[Текущий период]]>ОперационныеРасходы[[#This Row],[Предыдущий период]],ABS((ОперационныеРасходы[[#This Row],[Текущий период]]/ОперационныеРасходы[[#This Row],[Предыдущий период]])-1),IF(AND(ОперационныеРасходы[[#This Row],[Текущий период]]<ОперационныеРасходы[[#This Row],[Предыдущий период]],ОперационныеРасходы[[#This Row],[Предыдущий период]]<0),-((ОперационныеРасходы[[#This Row],[Текущий период]]/ОперационныеРасходы[[#This Row],[Предыдущий период]])-1),(ОперационныеРасходы[[#This Row],[Текущий период]]/ОперационныеРасходы[[#This Row],[Предыдущий период]])-1))),\"-\")","v":{"v":0,"d":"0.00%"}},{"$f":"IFERROR(IF(ОперационныеРасходы[[#This Row],[Бюджет]]=ОперационныеРасходы[[#This Row],[Текущий период]],0,IF(ОперационныеРасходы[[#This Row],[Текущий период]]>ОперационныеРасходы[[#This Row],[Бюджет]],ABS((ОперационныеРасходы[[#This Row],[Текущий период]]/ОперационныеРасходы[[#This Row],[Бюджет]])-1),IF(AND(ОперационныеРасходы[[#This Row],[Текущий период]]<ОперационныеРасходы[[#This Row],[Бюджет]],ОперационныеРасходы[[#This Row],[Бюджет]]<0),-((ОперационныеРасходы[[#This Row],[Текущий период]]/ОперационныеРасходы[[#This Row],[Бюджет]])-1),(ОперационныеРасходы[[#This Row],[Текущий период]]/ОперационныеРасходы[[#This Row],[Бюджет]])-1))),\"-\")","v":{"v":0,"d":"0.00%"}}]
[null,"Общие и административные","Прочие расходы (укажите)",{"$nulls":3},{"$f":"IFERROR(IF(Доходы_от_продаж=0,\"-\",ОперационныеРасходы[[#This Row],[Текущий период]]/Доходы_от_продаж),\"-\")","v":"-"},{"$f":"IFERROR(IF(ОперационныеРасходы[[#This Row],[Предыдущий период]]=ОперационныеРасходы[[#This Row],[Текущий период]],0,IF(ОперационныеРасходы[[#This Row],[Текущий период]]>ОперационныеРасходы[[#This Row],[Предыдущий период]],ABS((ОперационныеРасходы[[#This Row],[Текущий период]]/ОперационныеРасходы[[#This Row],[Предыдущий период]])-1),IF(AND(ОперационныеРасходы[[#This Row],[Текущий период]]<ОперационныеРасходы[[#This Row],[Предыдущий период]],ОперационныеРасходы[[#This Row],[Предыдущий период]]<0),-((ОперационныеРасходы[[#This Row],[Текущий период]]/ОперационныеРасходы[[#This Row],[Предыдущий период]])-1),(ОперационныеРасходы[[#This Row],[Текущий период]]/ОперационныеРасходы[[#This Row],[Предыдущий период]])-1))),\"-\")","v":{"v":0,"d":"0.00%"}},{"$f":"IFERROR(IF(ОперационныеРасходы[[#This Row],[Бюджет]]=ОперационныеРасходы[[#This Row],[Текущий период]],0,IF(ОперационныеРасходы[[#This Row],[Текущий период]]>ОперационныеРасходы[[#This Row],[Бюджет]],ABS((ОперационныеРасходы[[#This Row],[Текущий период]]/ОперационныеРасходы[[#This Row],[Бюджет]])-1),IF(AND(ОперационныеРасходы[[#This Row],[Текущий период]]<ОперационныеРасходы[[#This Row],[Бюджет]],ОперационныеРасходы[[#This Row],[Бюджет]]<0),-((ОперационныеРасходы[[#This Row],[Текущий период]]/ОперационныеРасходы[[#This Row],[Бюджет]])-1),(ОперационныеРасходы[[#This Row],[Текущий период]]/ОперационныеРасходы[[#This Row],[Бюджет]])-1))),\"-\")","v":{"v":0,"d":"0.00%"}}]
[null,"Общие и административные","Прочие расходы (укажите)",{"$nulls":3},{"$f":"IFERROR(IF(Доходы_от_продаж=0,\"-\",ОперационныеРасходы[[#This Row],[Текущий период]]/Доходы_от_продаж),\"-\")","v":"-"},{"$f":"IFERROR(IF(ОперационныеРасходы[[#This Row],[Предыдущий период]]=ОперационныеРасходы[[#This Row],[Текущий период]],0,IF(ОперационныеРасходы[[#This Row],[Текущий период]]>ОперационныеРасходы[[#This Row],[Предыдущий период]],ABS((ОперационныеРасходы[[#This Row],[Текущий период]]/ОперационныеРасходы[[#This Row],[Предыдущий период]])-1),IF(AND(ОперационныеРасходы[[#This Row],[Текущий период]]<ОперационныеРасходы[[#This Row],[Предыдущий период]],ОперационныеРасходы[[#This Row],[Предыдущий период]]<0),-((ОперационныеРасходы[[#This Row],[Текущий период]]/ОперационныеРасходы[[#This Row],[Предыдущий период]])-1),(ОперационныеРасходы[[#This Row],[Текущий период]]/ОперационныеРасходы[[#This Row],[Предыдущий период]])-1))),\"-\")","v":{"v":0,"d":"0.00%"}},{"$f":"IFERROR(IF(ОперационныеРасходы[[#This Row],[Бюджет]]=ОперационныеРасходы[[#This Row],[Текущий период]],0,IF(ОперационныеРасходы[[#This Row],[Текущий период]]>ОперационныеРасходы[[#This Row],[Бюджет]],ABS((ОперационныеРасходы[[#This Row],[Текущий период]]/ОперационныеРасходы[[#This Row],[Бюджет]])-1),IF(AND(ОперационныеРасходы[[#This Row],[Текущий период]]<ОперационныеРасходы[[#This Row],[Бюджет]],ОперационныеРасходы[[#This Row],[Бюджет]]<0),-((ОперационныеРасходы[[#This Row],[Текущий период]]/ОперационныеРасходы[[#This Row],[Бюджет]])-1),(ОперационныеРасходы[[#This Row],[Текущий период]]/ОперационныеРасходы[[#This Row],[Бюджет]])-1))),\"-\")","v":{"v":0,"d":"0.00%"}}]
[null,"Общие эксплуатационные расходы",null,{"$f":"SUBTOTAL(109,ОперационныеРасходы[Предыдущий период])","v":0},{"$f":"SUBTOTAL(109,ОперационныеРасходы[Бюджет])","v":0},{"$f":"SUBTOTAL(109,ОперационныеРасходы[Текущий период])","v":0},{"$f":"SUBTOTAL(109,ОперационныеРасходы[% продаж для текущего периода])","v":{"v":0,"d":"0.00%"}},{"$f":"SUBTOTAL(109,ОперационныеРасходы[% изменения по сравнению с предыдущим периодом])","v":{"v":0,"d":"0.00%"}},{"$f":"SUBTOTAL(109,ОперационныеРасходы[% отклонения от бюджета])","v":{"v":0,"d":"0.00%"}}]

{"sheet":"Налоги","index":4,"n_rows":10,"n_cols":9,"rows_kept":10,"merged":[[0,7,2,8]]}
[null,{"$f":"Заголовок_книги","v":"Отчет о финансовых результатах"}]
[null,{"$f":"Название_компании","v":"Название компании"},"Указывается в тысячах рублей"]
[null,"Налоги",{"$f":"IFERROR(Налоги[[#Totals],[Текущий период]],\"-\")","v":0}]
[null,"Тип","Описание","Предыдущий период","Бюджет","Текущий период","% продаж для текущего периода","% изменения по сравнению с предыдущим периодом","% отклонения от бюджета"]
[null,"Налоги","Налоги на прибыль",{"$nulls":3},{"$f":"IFERROR(IF(Доходы_от_продаж=0,\"-\",Налоги[[#This Row],[Текущий период]]/Доходы_от_продаж),\"-\")","v":"-"},{"$f":"IFERROR(IF(Налоги[[#This Row],[Предыдущий период]]=Налоги[[#This Row],[Текущий период]],0,IF(Налоги[[#This Row],[Текущий период]]>Налоги[[#This Row],[Предыдущий период]],ABS((Налоги[[#This Row],[Текущий период]]/Налоги[[#This Row],[Предыдущий период]])-1),IF(AND(Налоги[[#This Row],[Текущий период]]<Налоги[[#This Row],[Предыдущий период]],Налоги[[#This Row],[Предыдущий период]]<0),-((Налоги[[#This Row],[Текущий период]]/Налоги[[#This Row],[Предыдущий период]])-1),(Налоги[[#This Row],[Текущий период]]/Налоги[[#This Row],[Предыдущий период]])-1))),\"-\")","v":{"v":0,"d":"0.00%"}},{"$f":"IFERROR(IF(Налоги[[#This Row],[Бюджет]]=Налоги[[#This Row],[Текущий период]],0,IF(Налоги[[#This Row],[Текущий период]]>Налоги[[#This Row],[Бюджет]],ABS((Налоги[[#This Row],[Текущий период]]/Налоги[[#This Row],[Бюджет]])-1),IF(AND(Налоги[[#This Row],[Текущий период]]<Налоги[[#This Row],[Бюджет]],Налоги[[#This Row],[Бюджет]]<0),-((Налоги[[#This Row],[Текущий период]]/Налоги[[#This Row],[Бюджет]])-1),(Налоги[[#This Row],[Текущий период]]/Налоги[[#This Row],[Бюджет]])-1))),\"-\")","v":{"v":0,"d":"0.00%"}}]
[null,"Налоги","Налоги на зарплату",{"$nulls":3},{"$f":"IFERROR(IF(Доходы_от_продаж=0,\"-\",Налоги[[#This Row],[Текущий период]]/Доходы_от_продаж),\"-\")","v":"-"},{"$f":"IFERROR(IF(Налоги[[#This Row],[Предыдущий период]]=Налоги[[#This Row],[Текущий период]],0,IF(Налоги[[#This Row],[Текущий период]]>Налоги[[#This Row],[Предыдущий период]],ABS((Налоги[[#This Row],[Текущий период]]/Налоги[[#This Row],[Предыдущий период]])-1),IF(AND(Налоги[[#This Row],[Текущий период]]<Налоги[[#This Row],[Предыдущий период]],Налоги[[#This Row],[Предыдущий период]]<0),-((Налоги[[#This Row],[Текущий период]]/Налоги[[#This Row],[Предыдущий период]])-1),(Налоги[[#This Row],[Текущий период]]/Налоги[[#This Row],[Предыдущий период]])-1))),\"-\")","v":{"v":0,"d":"0.00%"}},{"$f":"IFERROR(IF(Налоги[[#This Row],[Бюджет]]=Налоги[[#This Row],[Текущий период]],0,IF(Налоги[[#This Row],[Текущий период]]>Налоги[[#This Row],[Бюджет]],ABS((Налоги[[#This Row],[Текущий период]]/Налоги[[#This Row],[Бюджет]])-1),IF(AND(Налоги[[#This Row],[Текущий период]]<Налоги[[#This Row],[Бюджет]],Налоги[[#This Row],[Бюджет]]<0),-((Налоги[[#This Row],[Текущий период]]/Налоги[[#This Row],[Бюджет]])-1),(Налоги[[#This Row],[Текущий период]]/Налоги[[#This Row],[Бюджет]])-1))),\"-\")","v":{"v":0,"d":"0.00%"}}]
[null,"Налоги","Налоги на недвижимость",{"$nulls":3},{"$f":"IFERROR(IF(Доходы_от_продаж=0,\"-\",Налоги[[#This Row],[Текущий период]]/Доходы_от_продаж),\"-\")","v":"-"},{"$f":"IFERROR(IF(Налоги[[#This Row],[Предыдущий период]]=Налоги[[#This Row],[Текущий период]],0,IF(Налоги[[#This Row],[Текущий период]]>Налоги[[#This Row],[Предыдущий период]],ABS((Налоги[[#This Row],[Текущий период]]/Налоги[[#This Row],[Предыдущий период]])-1),IF(AND(Налоги[[#This Row],[Текущий период]]<Налоги[[#This Row],[Предыдущий период]],Налоги[[#This Row],[Предыдущий период]]<0),-((Налоги[[#This Row],[Текущий период]]/Налоги[[#This Row],[Предыдущий период]])-1),(Налоги[[#This Row],[Текущий период]]/Налоги[[#This Row],[Предыдущий период]])-1))),\"-\")","v":{"v":0,"d":"0.00%"}},{"$f":"IFERROR(IF(Налоги[[#This Row],[Бюджет]]=Налоги[[#This Row],[Текущий период]],0,IF(Налоги[[#This Row],[Текущий период]]>Налоги[[#This Row],[Бюджет]],ABS((Налоги[[#This Row],[Текущий период]]/Налоги[[#This Row],[Бюджет]])-1),IF(AND(Налоги[[#This Row],[Текущий период]]<Налоги[[#This Row],[Бюджет]],Налоги[[#This Row],[Бюджет]]<0),-((Налоги[[#This Row],[Текущий период]]/Налоги[[#This Row],[Бюджет]])-1),(Налоги[[#This Row],[Текущий период]]/Налоги[[#This Row],[Бюджет]])-1))),\"-\")","v":{"v":0,"d":"0.00%"}}]
[null,"Налоги","Другие налоги (указать)",{"$nulls":3},{"$f":"IFERROR(IF(Доходы_от_продаж=0,\"-\",Налоги[[#This Row],[Текущий период]]/Доходы_от_продаж),\"-\")","v":"-"},{"$f":"IFERROR(IF(Налоги[[#This Row],[Предыдущий период]]=Налоги[[#This Row],[Текущий период]],0,IF(Налоги[[#This Row],[Текущий период]]>Налоги[[#This Row],[Предыдущий период]],ABS((Налоги[[#This Row],[Текущий период]]/Налоги[[#This Row],[Предыдущий период]])-1),IF(AND(Налоги[[#This Row],[Текущий период]]<Налоги[[#This Row],[Предыдущий период]],Налоги[[#This Row],[Предыдущий период]]<0),-((Налоги[[#This Row],[Текущий период]]/Налоги[[#This Row],[Предыдущий период]])-1),(Налоги[[#This Row],[Текущий период]]/Налоги[[#This Row],[Предыдущий период]])-1))),\"-\")","v":{"v":0,"d":"0.00%"}},{"$f":"IFERROR(IF(Налоги[[#This Row],[Бюджет]]=Налоги[[#This Row],[Текущий период]],0,IF(Налоги[[#This Row],[Текущий период]]>Налоги[[#This Row],[Бюджет]],ABS((Налоги[[#This Row],[Текущий период]]/Налоги[[#This Row],[Бюджет]])-1),IF(AND(Налоги[[#This Row],[Текущий период]]<Налоги[[#This Row],[Бюджет]],Налоги[[#This Row],[Бюджет]]<0),-((Налоги[[#This Row],[Текущий период]]/Налоги[[#This Row],[Бюджет]])-1),(Налоги[[#This Row],[Текущий период]]/Налоги[[#This Row],[Бюджет]])-1))),\"-\")","v":{"v":0,"d":"0.00%"}}]
[null,"Налоги","Другие налоги (указать)",{"$nulls":3},{"$f":"IFERROR(IF(Доходы_от_продаж=0,\"-\",Налоги[[#This Row],[Текущий период]]/Доходы_от_продаж),\"-\")","v":"-"},{"$f":"IFERROR(IF(Налоги[[#This Row],[Предыдущий период]]=Налоги[[#This Row],[Текущий период]],0,IF(Налоги[[#This Row],[Текущий период]]>Налоги[[#This Row],[Предыдущий период]],ABS((Налоги[[#This Row],[Текущий период]]/Налоги[[#This Row],[Предыдущий период]])-1),IF(AND(Налоги[[#This Row],[Текущий период]]<Налоги[[#This Row],[Предыдущий период]],Налоги[[#This Row],[Предыдущий период]]<0),-((Налоги[[#This Row],[Текущий период]]/Налоги[[#This Row],[Предыдущий период]])-1),(Налоги[[#This Row],[Текущий период]]/Налоги[[#This Row],[Предыдущий период]])-1))),\"-\")","v":{"v":0,"d":"0.00%"}},{"$f":"IFERROR(IF(Налоги[[#This Row],[Бюджет]]=Налоги[[#This Row],[Текущий период]],0,IF(Налоги[[#This Row],[Текущий период]]>Налоги[[#This Row],[Бюджет]],ABS((Налоги[[#This Row],[Текущий период]]/Налоги[[#This Row],[Бюджет]])-1),IF(AND(Налоги[[#This Row],[Текущий период]]<Налоги[[#This Row],[Бюджет]],Налоги[[#This Row],[Бюджет]]<0),-((Налоги[[#This Row],[Текущий период]]/Налоги[[#This Row],[Бюджет]])-1),(Налоги[[#This Row],[Текущий период]]/Налоги[[#This Row],[Бюджет]])-1))),\"-\")","v":{"v":0,"d":"0.00%"}}]
[null,"Суммарные налоги",null,{"$f":"SUBTOTAL(109,Налоги[Предыдущий период])","v":0},{"$f":"SUBTOTAL(109,Налоги[Бюджет])","v":0},{"$f":"SUBTOTAL(109,Налоги[Текущий период])","v":0},{"$f":"IFERROR(SUBTOTAL(109,Налоги[% продаж для текущего периода]),\"-\")","v":{"v":0,"d":"0.00%"}},{"$f":"SUBTOTAL(109,Налоги[% изменения по сравнению с предыдущим периодом])","v":{"v":0,"d":"0.00%"}},{"$f":"SUBTOTAL(109,Налоги[% отклонения от бюджета])","v":{"v":0,"d":"0.00%"}}]

{"sheet":"Категории","index":5,"n_rows":8,"n_cols":2,"rows_kept":8}
[null,"Категории"]
[null,"Доходы от продаж"]
[null,"Себестоимость продаж"]
[null,"Прибыль"]
[null,"Продажи и маркетинг"]
[null,"Исследования и разработки"]
[null,"Общие и административные"]
[null,"Налоги"]